bitfinex/quotes_ETHUSD_20250324
["timestamp","ask_amount","ask_price","bid_price","bid_amount"]
[1742774896191,0.3553,2003.4,2002.9,4.758]
[1742774896715,0.3553,2003.2,2002.9,4.758]
[1742774896893,0.3553,2003.2,2002.7,0.1209504]
[1742774897078,0.13744249,2003.1,2002.8,4.758]
[1742774897282,0.3553,2003.2,2002.8,4.758]
[1742774897477,0.13736056,2003.0,2002.7,4.8789504]
[1742774897682,0.3553,2003.2,2002.7,4.8789504]
[1742774897882,0.13729768,2002.9,2002.7,4.8789504]
[1742774898185,0.3553,2003.2,2002.7,4.8789504]
[1742774898406,0.13746155,2003.1,2002.7,4.8789504]
[1742774898718,0.3553,2003.4,2002.7,4.8789504]
[1742774898933,0.49267962,2003.0,2002.7,4.8789504]
[1742774899087,0.3553,2003.0,2002.7,4.8789504]
[1742774899287,0.13729768,2002.9,2002.7,4.8789504]
[1742774900021,0.13729768,2002.9,2002.7,0.1209504]
[1742774900224,0.13729768,2002.9,2002.7,4.8789504]
[1742774901686,0.51049436,2002.9,2002.7,0.1209504]
[1742774901890,0.13729768,2002.9,2002.7,0.1209504]
[1742774903192,0.3553,2002.8,2002.7,0.1209504]
[1742774903695,0.49070979,2002.8,2002.7,0.1209504]
[1742774913238,0.38179102,2002.9,2002.7,0.1209504]
[1742774913523,0.13513889,2002.8,2002.7,0.1209504]
[1742774914029,0.73783621,2003.4,2002.7,0.1209504]
[1742774914233,0.73783621,2003.4,2002.8,0.8141]
[1742774914644,0.73783621,2003.4,2002.7,0.1209504]
[1742774915636,0.3553,2003.3,2002.7,0.1209504]
[1742774917436,0.92277359,2003.4,2002.7,0.1209504]
[1742774917437,0.3553,2003.0,2002.7,0.1209504]
[1742774917636,7.993,2002.8,2002.7,0.1209504]
[1742774919914,8.36282269,2002.8,2002.7,0.1209504]
[1742774928825,8.48420197,2002.8,2002.7,0.1209504]
[1742774940418,13.59750197,2002.8,2002.7,4e-07]
[1742774946453,13.24220197,2002.8,2002.7,4e-07]
[1742774950330,13.59750197,2002.8,2002.7,4e-07]
[1742774954090,13.59850197,2002.8,2002.7,4e-07]
[1742774954440,4.994,2002.4,2002.3,0.8156]
[1742774954645,8.11186068,2002.4,2002.3,0.8156]
[1742774958883,0.11786068,2002.4,2002.3,5.80985]
[1742774959047,0.11786068,2002.4,2002.3,0.8156]
[1742774959372,3.0,2002.5,2002.4,0.8156]
[1742774959871,4.99255,2003.0,2002.4,0.8156]
[1742774959872,9.98525,2003.0,2002.7,0.8156]
[1742774960191,4.9929,2002.9,2002.7,0.8156]
[1742774960549,3.0,2002.8,2002.7,0.8156]
[1742774960743,7.99233,2003.1,2002.8,0.7844]
[1742774960964,9.98479,2003.1,2002.8,0.7844]
[1742774961170,4.99252,2003.0,2002.8,0.7844]
[1742774961582,7.99276,2002.9,2002.8,0.7844]
[1742774962247,3.0,2002.9,2002.8,0.7844]
[1742774962448,3.0,2003.0,2002.8,1.83798]
[1742774962652,3.0,2003.0,2002.9,0.7844]
[1742774962853,3.0,2003.1,2002.9,0.7844]
[1742774963078,7.9923,2003.1,2002.9,0.7844]
[1742774963381,3.0,2003.1,2002.9,0.7844]
[1742774964174,7.99237,2003.1,2002.9,0.7844]
[1742774964376,4.99251,2003.0,2002.9,0.7844]
[1742774964880,7.99237,2003.1,2002.9,0.7844]
[1742774965383,12.98479,2003.1,2002.9,0.7844]
[1742774965588,7.99237,2003.1,2002.9,0.7844]
[1742774965784,4.99187,2003.3,2002.9,0.7844]
[1742774965975,3.0,2003.3,2003.1,0.7844]
[1742774966777,7.99181,2003.3,2003.1,0.7844]
[1742774967655,12.98378,2003.3,2003.1,0.7844]
[1742774968485,7.99271,2003.0,2002.9,5.5414]
[1742774969581,7.99271,2003.0,2002.9,0.7844]
[1742774969984,4.993,2002.8,2002.7,0.7844]
[1742774970185,7.993,2002.8,2002.7,0.7844]
[1742774970352,8.10276263,2002.8,2002.7,0.7844]
[1742774970861,3.10976263,2002.8,2002.7,0.7844]
[1742774971103,3.10976263,2002.8,2002.7,6.33179]
[1742774972068,3.10976263,2002.8,2002.7,1.33854]
[1742774974205,3.10976263,2002.8,2002.7,6.33179]
[1742774974410,3.0,2002.8,2002.7,6.33179]
[1742774974617,3.10209662,2002.8,2002.7,6.33179]
[1742774974803,3.10209662,2002.8,2002.7,6.88179]
[1742774975115,3.0,2002.8,2002.7,6.88179]
[1742774976399,3.0,2002.8,2002.7,14.88179]
[1742774977705,0.38253621,2003.4,2003.0,4.99248]
[1742774977999,4.99101,2003.6,2003.1,10.53664]
[1742774978174,0.1025062,2003.3,2003.1,10.53664]
[1742774978377,3.0,2003.5,2003.1,10.53664]
[1742774978600,0.1024243,2003.2,2003.1,10.53664]
[1742774978782,3.0,2003.5,2003.1,10.53664]
[1742774978983,0.1024243,2003.2,2003.1,10.53664]
[1742774979181,7.99127,2003.5,2003.1,12.089552]
[1742774979383,0.1024243,2003.2,2003.1,12.089552]
[1742774979568,7.99115,2003.6,2003.1,12.089552]
[1742774979768,0.1024243,2003.2,2003.1,12.089552]
[1742774979971,8.35985664,2003.6,2003.1,12.089552]
[1742774980194,0.1024243,2003.2,2003.1,12.089552]
[1742774980421,8.35985664,2003.6,2003.1,12.089552]
[1742774980578,0.1024243,2003.2,2003.1,12.089552]
[1742774980778,8.35983664,2003.6,2003.1,7.097412]
[1742774980980,0.1024243,2003.2,2003.1,7.097412]
[1742774981202,8.35983664,2003.6,2003.1,7.097412]
[1742774981396,0.10439813,2003.2,2003.1,7.097412]
[1742774981596,8.35971664,2003.6,2003.1,7.097412]
[1742774981909,8.35971664,2003.6,2003.1,12.089672]
[1742774982107,0.10464381,2003.5,2003.1,12.089672]
[1742774982275,0.10464381,2003.5,2003.2,1.7081942]
[1742774984491,0.10464381,2003.5,2003.3,0.7885]
[1742774988919,0.10464381,2003.5,2003.4,4.99151]
[1742774989124,0.10464381,2003.5,2003.3,0.7885]
[1742774989295,5.09597381,2003.5,2003.2,1.7081942]
[1742774989507,7.99164,2003.4,2003.1,0.7885]
[1742774989721,3.0,2003.1,2003.0,4.755]
[1742774990225,7.99226,2003.1,2003.0,4.755]
[1742774990408,8.09975864,2003.1,2002.8,27.618]
[1742774990625,8.09975864,2003.1,2002.8,32.373]
[1742774991419,3.10749864,2003.1,2002.8,32.373]
[1742774991732,8.09978864,2003.1,2002.8,32.373]
[1742774992547,8.09978864,2003.1,2002.8,4.755]
[1742774993044,4.99251,2003.0,2002.8,4.755]
[1742774993396,0.10517859,2002.9,2002.8,4.755]
[1742774994324,3.0,2002.8,2002.7,0.7554]
[1742774994531,3.0,2002.8,2002.6,4.755]
[1742774994704,8.09820667,2002.8,2002.6,4.755]
[1742774995096,3.0,2002.5,2002.2,8.0]
[1742774995328,0.10474979,2002.4,2002.2,5.5104]
[1742774995532,3.0,2002.3,2002.2,0.7554]
[1742774995898,3.10446428,2002.3,2002.2,0.7554]
[1742774996517,0.10446428,2002.3,2002.2,0.7554]
[1742774997230,3.0,2002.4,2002.0,1.3054]
[1742774997529,0.10450251,2002.3,2002.1,1.10150504]
[1742774997828,5.09877251,2002.3,2002.1,1.10150504]
[1742774998034,0.10450251,2002.3,2002.0,5.5104]
[1742775001541,8.37259771,2002.4,2002.0,5.5104]
[1742775002039,0.10442605,2002.3,2002.0,5.5104]
[1742775003450,5.09867605,2002.3,2002.0,5.5104]
[1742775007151,3.0,2002.1,2001.8,8.7923]
[1742775007437,7.99509,2002.0,2001.9,4.756]
[1742775007815,3.09884088,2002.0,2001.9,4.756]
[1742775008613,3.09884088,2002.0,2001.9,11.14349916]
[1742775008846,3.09884088,2002.0,2001.9,11.09355]
[1742775009022,3.09884088,2002.0,2001.9,12.702441]
[1742775009219,3.0,2002.0,2001.9,12.702441]
[1742775009441,3.37858771,2002.4,2001.9,16.905251]
[1742775009743,3.37858771,2002.4,2002.0,0.7923]
[1742775010551,5.34833,2002.8,2002.1,5.04467235]
[1742775010751,4.99281,2002.9,2002.3,5.78635]
[1742775010925,4.99268,2003.0,2002.5,0.7923]
[1742775011121,4.99285,2002.9,2002.5,0.7923]
[1742775011517,3.0,2002.8,2002.5,0.7923]
[1742775011924,4.99285,2002.9,2002.5,0.7923]
[1742775012253,4.99238,2003.1,2002.7,0.7588]
[1742775012454,3.0,2003.0,2002.8,4.756]
[1742775012956,10.35449763,2003.1,2002.8,4.756]
[1742775013124,5.36206763,2003.1,2002.8,4.756]
[1742775013326,3.0,2003.0,2002.8,4.756]
[1742775014026,5.36206763,2003.1,2002.8,4.756]
[1742775014358,3.0,2003.0,2002.8,4.756]
[1742775015777,3.0,2003.1,2002.8,5.30748]
[1742775015962,4.99135,2003.5,2002.9,5.75136]
[1742775016130,4.9912,2003.6,2002.9,5.75136]
[1742775016325,4.99113,2003.6,2003.0,4.99243]
[1742775016553,0.3553,2003.7,2003.1,1.757299]
[1742775016554,7.99093,2003.7,2003.1,1.757299]
[1742775016730,12.98192,2003.7,2003.2,4.756]
[1742775016931,4.99054,2003.8,2003.3,0.04991313]
[1742775017130,4.99079,2003.7,2003.2,4.756]
[1742775017359,3.0,2003.6,2003.2,4.756]
[1742775017561,3.0,2003.7,2003.2,12.29541753]
[1742775017860,3.0,2003.7,2003.3,0.7588]
[1742775018166,8.36035418,2003.9,2003.3,5.75054]
[1742775018464,8.36035418,2003.9,2003.3,0.7588]
[1742775018465,3.0,2003.7,2003.3,0.7588]
[1742775018965,0.09762846,2003.6,2003.3,0.7588]
[1742775019167,0.09762846,2003.6,2003.3,3.61594128]
[1742775021078,8.08874846,2003.6,2003.3,3.61594128]
[1742775021366,3.09870613,2003.5,2003.3,0.7588]
[1742775022629,0.09870613,2003.5,2003.3,0.7588]
[1742775024280,7.99082,2003.7,2003.3,0.7588]
[1742775024461,0.09893929,2003.4,2003.3,1.3088]
[1742775024768,0.09871575,2003.4,2003.3,1.3088]
[1742775024974,0.09871575,2003.4,2003.3,2.91277753]
[1742775025171,7.99086,2003.7,2003.3,2.91277753]
[1742775025376,0.09880164,2003.4,2003.3,2.91277753]
[1742775025573,7.99086,2003.7,2003.3,2.91277753]
[1742775025792,0.0990688,2003.4,2003.3,2.91277753]
[1742775025991,7.99086,2003.7,2003.3,2.91277753]
[1742775026162,7.99086,2003.7,2003.4,1.56687775]
[1742775028397,12.98184,2003.7,2003.3,1.3088]
[1742775029096,7.99086,2003.7,2003.3,1.3088]
[1742775030170,12.98173,2003.7,2003.3,1.3088]
[1742775030503,7.99086,2003.7,2003.3,1.3088]
[1742775030705,4.99129,2003.5,2003.3,0.7588]
[1742775030859,4.99129,2003.5,2003.4,4.753]
[1742775031407,7.99129,2003.5,2003.4,4.753]
[1742775032003,3.0,2003.5,2003.4,4.753]
[1742775033804,3.27161628,2003.5,2003.4,4.753]
[1742775035661,3.0,2003.5,2003.4,6.0726]
[1742775036377,3.27166756,2003.5,2003.4,6.0726]
[1742775036576,3.0,2003.5,2003.4,6.0726]
[1742775036834,3.27185284,2003.5,2003.4,7.179055]
[1742775037114,3.27186993,2003.5,2003.4,5.5226]
[1742775037317,3.27186993,2003.5,2003.4,4.753]
[1742775038697,3.0,2003.4,2003.3,0.55]
[1742775038920,0.27197949,2003.4,2003.3,5.303]
[1742775041128,7.99083,2003.7,2003.3,5.303]
[1742775041287,0.27214322,2003.6,2003.3,6.79824977]
[1742775042302,0.27214322,2003.6,2003.4,0.7696]
[1742775043530,3.0,2003.5,2003.3,5.303]
[1742775043684,0.2719624,2003.4,2003.3,0.55]
[1742775043885,0.2719624,2003.4,2003.3,5.302]
[1742775044086,7.99084,2003.7,2003.3,7.80522863]
[1742775044329,0.27212613,2003.6,2003.3,7.80522863]
[1742775044543,3.0,2003.5,2003.3,7.80522863]
[1742775044718,0.27185981,2003.4,2003.3,7.80522863]
[1742775046020,7.99128,2003.5,2003.3,7.80522863]
[1742775046226,0.2721648,2003.4,2003.2,0.55]
[1742775046418,0.2721648,2003.4,2003.3,4.752]
[1742775051697,3.0,2003.3,2003.1,0.97647629]
[1742775051919,3.0,2003.3,2003.2,4.752]
[1742775052422,7.99135,2003.5,2003.2,4.752]
[1742775054075,3.0,2003.3,2003.2,4.752]
[1742775055963,4.99126,2003.5,2003.2,4.752]
[1742775056979,3.3553,2003.6,2003.2,9.744]
[1742775057157,4.9913,2003.5,2003.2,4.752]
[1742775058779,3.0,2003.7,2003.3,6.30237]
[1742775061553,3.0,2003.8,2003.5,1.3107]
[1742775061752,3.0,2003.8,2003.6,4.752]
[1742775062594,5.34556,2004.0,2003.6,4.752]
[1742775062753,7.99026,2003.9,2003.6,4.752]
[1742775062953,4.99052,2003.8,2003.6,4.752]
[1742775063454,4.99052,2003.8,2003.6,5.45926261]
[1742775063950,0.27176005,2003.7,2003.6,5.45926261]
[1742775064560,3.0,2003.9,2003.6,5.45926261]
[1742775064760,0.27176005,2003.7,2003.6,5.45926261]
[1742775064961,4.99053,2003.8,2003.6,5.45926261]
[1742775065284,0.27176005,2003.7,2003.6,5.45926261]
[1742775067916,0.27176005,2003.7,2003.6,6.00926261]
[1742775068079,0.27176005,2003.7,2003.6,11.81807261]
[1742775068406,4.98941,2004.3,2003.6,11.81807261]
[1742775068407,7.98953,2004.2,2003.8,1.3678]
[1742775068607,7.98953,2004.2,2003.9,0.635834]
[1742775068903,0.25111219,2004.1,2004.0,4.751]
[1742775069104,5.24088219,2004.1,2004.0,4.751]
[1742775069410,8.59618219,2004.1,2004.0,4.751]
[1742775070387,8.24088219,2004.1,2004.0,4.751]
[1742775071215,3.25111219,2004.1,2004.0,4.751]
[1742775071389,3.25111219,2004.1,2004.0,5.2261]
[1742775071787,8.24088219,2004.1,2004.0,5.2261]
[1742775072408,3.25111219,2004.1,2004.0,5.2261]
[1742775072772,8.24088219,2004.1,2004.0,5.2261]
[1742775072978,8.24088219,2004.1,2004.0,4.751]
[1742775077716,3.25111219,2004.1,2004.0,10.55881]
[1742775077880,3.25111219,2004.1,2004.0,6.1188]
[1742775078077,3.25111219,2004.1,2004.0,11.10881]
[1742775078312,0.25111219,2004.1,2004.0,11.10881]
[1742775078504,5.3436,2004.7,2004.3,0.8178]
[1742775078705,4.98853,2004.6,2004.4,4.75]
[1742775078900,5.24228479,2004.6,2004.4,4.75]
[1742775079101,3.0,2004.5,2004.4,4.75]
[1742775079304,5.24228479,2004.6,2004.4,4.75]
[1742775079513,5.24253696,2004.5,2004.4,4.75]
[1742775080116,8.24253696,2004.5,2004.4,4.75]
[1742775080315,3.25376696,2004.5,2004.4,4.75]
[1742775082111,2.25376696,2004.5,2004.4,4.75]
[1742775082320,2.50746561,2004.5,2004.4,4.75]
[1742775082821,2.50746561,2004.5,2004.4,5.32462349]
[1742775084309,2.50746561,2004.5,2004.4,6.15342349]
[1742775084813,2.50746561,2004.5,2004.4,11.69244349]
[1742775085216,2.25376696,2004.5,2004.4,5.32362349]
[1742775085412,7.24253696,2004.5,2004.4,4.749]
[1742775085581,7.45707631,2004.5,2004.4,4.749]
[1742775085788,2.46830631,2004.5,2004.4,4.749]
[1742775085995,2.25376696,2004.5,2004.4,4.749]
[1742775086299,7.45702507,2004.5,2004.4,4.749]
[1742775087224,2.46825507,2004.5,2004.4,4.749]
[1742775090425,2.46825507,2004.5,2004.4,6.6027]
[1742775090653,0.3553,2005.1,2004.7,4.98821]
[1742775090793,0.3553,2005.1,2004.7,5.81701]
[1742775090993,5.71076197,2005.1,2004.7,0.8288]
[1742775091193,7.98753,2005.0,2004.7,0.8288]
[1742775091414,7.98753,2005.0,2004.7,1.410533]
[1742775091899,4.98786,2004.9,2004.7,1.410533]
[1742775092106,4.98786,2004.9,2004.5,1.3788]
[1742775092803,4.98786,2004.9,2004.5,2.36908514]
[1742775094038,0.21563604,2004.8,2004.5,2.36908514]
[1742775094208,4.98786,2004.9,2004.5,2.36908514]
[1742775094408,0.21556283,2004.7,2004.5,2.36908514]
[1742775094627,4.98786,2004.9,2004.6,2.05819551]
[1742775094827,3.0,2004.7,2004.6,2.05819551]
[1742775095433,4.98785,2004.9,2004.6,2.05819551]
[1742775095606,3.0,2004.8,2004.6,2.05819551]
[1742775098520,7.98807,2004.8,2004.6,2.05819551]
[1742775098916,3.0,2004.6,2004.5,4.747]
[1742775099317,7.98852,2004.6,2004.3,0.8318]
[1742775099524,12.97729,2004.6,2004.4,4.747]
[1742775099753,7.98852,2004.6,2004.4,4.747]
[1742775101911,7.98852,2004.6,2004.4,6.3128288]
[1742775102826,12.97728,2004.6,2004.4,6.3128288]
[1742775103146,3.0,2004.6,2004.4,6.3128288]
[1742775103918,7.98859,2004.6,2004.4,6.3128288]
[1742775104244,3.0,2004.6,2004.4,6.3128288]
[1742775104845,7.98856,2004.6,2004.4,6.3128288]
[1742775105547,3.0,2004.6,2004.4,6.3128288]
[1742775107255,7.9886,2004.6,2004.4,6.3128288]
[1742775107958,12.97732,2004.6,2004.4,5.7549488]
[1742775108129,7.9886,2004.6,2004.4,5.7549488]
[1742775108856,0.20924404,2004.5,2004.4,5.7549488]
[1742775109560,3.0,2004.5,2004.4,5.7549488]
[1742775109857,3.20924404,2004.5,2004.4,5.7549488]
[1742775110851,0.20924404,2004.5,2004.4,5.7549488]
[1742775111052,7.98831,2004.7,2004.4,5.7549488]
[1742775111433,0.20857976,2004.6,2004.4,5.7549488]
[1742775111633,7.98831,2004.7,2004.4,5.7549488]
[1742775111959,0.20843293,2004.5,2004.4,5.7549488]
[1742775112166,7.98831,2004.7,2004.4,6.82939368]
[1742775112332,3.20843293,2004.5,2004.4,6.82939368]
[1742775112530,7.98833,2004.7,2004.4,6.82939368]
[1742775112856,7.98833,2004.7,2004.4,5.7549488]
[1742775112857,3.0,2004.5,2004.4,5.7549488]
[1742775113056,3.20843293,2004.5,2004.4,5.7549488]
[1742775113259,0.20843293,2004.5,2004.4,5.7549488]
[1742775113463,7.98829,2004.7,2004.4,6.5582488]
[1742775113665,0.20850617,2004.6,2004.4,6.5582488]
[1742775113864,7.98829,2004.7,2004.4,8.21193968]
[1742775114340,0.20850617,2004.6,2004.4,6.5582488]
[1742775114544,0.20850617,2004.6,2004.4,5.5503]
[1742775114752,7.98829,2004.7,2004.4,5.5503]
[1742775114937,0.20833986,2004.5,2004.4,5.5503]
[1742775115138,12.97677,2004.7,2004.4,5.5503]
[1742775115333,3.20826627,2004.5,2004.4,5.5503]
[1742775115674,3.20826627,2004.5,2004.4,4.747]
[1742775115845,3.0,2004.5,2004.4,4.747]
[1742775119662,7.98877,2004.5,2004.4,4.747]
[1742775119863,7.98877,2004.5,2004.1,4.746]
[1742775119864,3.0,2004.3,2004.1,4.746]
[1742775120067,3.0,2004.1,2004.0,8.0]
[1742775120255,3.20670491,2004.1,2004.0,12.746]
[1742775120462,3.20670491,2004.1,2004.0,4.746]
[1742775121469,3.20670491,2004.1,2004.0,6.91660838]
[1742775123180,0.20670491,2004.1,2004.0,6.91660838]
[1742775123540,7.98928,2004.3,2004.0,6.91660838]
[1742775123740,0.20433121,2004.1,2004.0,6.91660838]
[1742775123955,7.98928,2004.3,2004.0,6.91660838]
[1742775124271,13.71315148,2004.5,2004.1,5.30458684]
[1742775124473,8.72418148,2004.5,2004.1,5.30458684]
[1742775124940,8.36888148,2004.5,2004.1,5.30458684]
[1742775125297,8.36888148,2004.5,2004.2,0.04988991]
[1742775125443,3.3553,2004.7,2004.2,0.04988991]
[1742775125639,5.34369,2004.7,2004.2,4.98943]
[1742775125877,5.34324,2004.9,2004.4,4.98902]
[1742775126053,3.0,2004.7,2004.5,4.746]
[1742775126257,3.0,2004.8,2004.5,4.746]
[1742775126656,7.98804,2004.8,2004.5,4.746]
[1742775126853,4.98722,2005.2,2004.6,0.7653]
[1742775126854,4.9873,2005.1,2004.6,0.7653]
[1742775127057,4.98758,2005.0,2004.6,5.75365]
[1742775127373,3.0,2004.9,2004.6,5.75365]
[1742775127579,3.0,2004.9,2004.6,0.7653]
[1742775128268,3.0,2005.0,2004.7,0.55]
[1742775128445,3.0,2005.0,2004.7,2.31884367]
[1742775129978,7.98754,2005.0,2004.7,2.31884367]
[1742775130376,3.0,2005.1,2004.8,4.98801]
[1742775130579,3.0,2005.1,2004.9,4.746]
[1742775130750,4.98742,2005.1,2004.9,4.746]
[1742775131181,3.0,2005.0,2004.9,4.746]
[1742775131371,3.0,2005.0,2004.9,5.45248437]
[1742775131755,4.98708,2005.2,2004.9,5.45248437]
[1742775131957,0.3553,2005.4,2005.0,4.98733]
[1742775132182,5.71626955,2005.4,2004.9,6.25148437]
[1742775132477,7.9868,2005.3,2004.9,6.25148437]
[1742775132677,4.98677,2005.4,2005.0,1.67393044]
[1742775132859,4.98677,2005.4,2005.0,6.66146044]
[1742775133374,3.0,2005.3,2005.1,0.799]
[1742775134791,3.0,2005.5,2005.1,0.799]
[1742775134991,7.98646,2005.5,2005.1,0.799]
[1742775135192,7.98646,2005.5,2005.2,0.84699032]
[1742775135489,4.98502,2006.1,2005.6,0.799]
[1742775135652,4.98554,2005.8,2005.7,4.745]
[1742775136085,5.3406,2005.9,2005.3,0.55]
[1742775136283,7.98676,2005.4,2005.3,4.745]
[1742775137808,7.98678,2005.3,2005.2,0.84699032]
[1742775137962,7.98678,2005.3,2005.2,4.744]
[1742775138884,8.15075682,2005.3,2005.2,4.744]
[1742775139198,7.98728,2005.1,2005.0,1.12393044]
[1742775139407,7.98728,2005.1,2005.0,4.744]
[1742775139558,8.15111044,2005.1,2005.0,4.744]
[1742775139758,7.98753,2005.0,2004.9,1.25648437]
[1742775139955,7.98753,2005.0,2004.9,6.00048437]
[1742775140290,8.15128723,2005.0,2004.9,6.00048437]
[1742775141364,3.16375723,2005.0,2004.9,6.00048437]
[1742775141689,8.15128723,2005.0,2004.9,6.00048437]
[1742775143210,8.15128723,2005.0,2004.9,5.45048437]
[1742775144588,3.16375723,2005.0,2004.9,6.00048437]
[1742775144788,3.16375723,2005.0,2004.7,27.596]
[1742775144789,0.16375723,2005.0,2004.7,27.596]
[1742775145110,7.98767,2005.0,2004.7,27.596]
[1742775145314,0.16368402,2004.9,2004.7,27.596]
[1742775146515,0.16368402,2004.9,2004.7,0.55]
[1742775146722,12.97539,2005.0,2004.7,0.55]
[1742775146892,0.16368402,2004.9,2004.7,2.55933778]
[1742775147091,3.0,2004.8,2004.7,2.55933778]
[1742775147294,3.1636108,2004.8,2004.7,2.55933778]
[1742775147495,8.1516308,2004.8,2004.7,2.00933778]
[1742775147891,8.1516308,2004.8,2004.6,5.5606]
[1742775148223,8.1516308,2004.8,2004.6,4.744]
[1742775149699,4.98838,2004.7,2004.5,0.98741122]
[1742775149889,3.16253876,2004.6,2004.5,1.53741122]
[1742775150093,3.16253876,2004.6,2004.5,9.77493334]
[1742775150293,0.16253876,2004.6,2004.5,9.77493334]
[1742775150517,4.98802,2004.8,2004.5,8.78752212]
[1742775150829,0.16142722,2004.7,2004.5,8.78752212]
[1742775151522,0.16142722,2004.7,2004.5,13.77627212]
[1742775151726,12.9758,2004.9,2004.6,1.55796698]
[1742775152024,5.14952045,2004.8,2004.6,1.55796698]
[1742775152524,0.16150045,2004.8,2004.6,1.55796698]
[1742775152705,4.98727,2005.2,2004.7,6.40474879]
[1742775152901,4.98737,2005.1,2004.7,7.97489379]
[1742775153101,0.16171518,2005.0,2004.7,7.97489379]
[1742775153304,0.16171518,2005.0,2004.7,7.15811379]
[1742775153637,0.16171518,2005.0,2004.8,0.8166]
[1742775153928,0.16171518,2005.0,2004.9,4.744]
[1742775154106,3.0,2005.1,2004.9,6.51466838]
[1742775154499,0.1621254,2005.0,2004.9,6.51466838]
[1742775155107,5.1496554,2005.0,2004.9,6.51466838]
[1742775155309,5.1496554,2005.0,2004.9,4.744]
[1742775159030,8.5049554,2005.0,2004.9,4.744]
[1742775159200,3.0,2004.7,2004.5,0.55]
[1742775159398,7.98829,2004.7,2004.6,4.744]
[1742775159631,7.98863,2004.6,2004.5,4.744]
[1742775160031,3.0,2004.6,2004.5,5.96857831]
[1742775161219,3.0,2004.6,2004.5,12.30754831]
[1742775162247,4.98763,2005.0,2004.6,5.53851]
[1742775162453,3.0,2005.1,2004.7,5.78824]
[1742775162625,7.98737,2005.1,2004.7,7.81892183]
[1742775164324,12.97485,2005.1,2004.7,2.83088183]
[1742775164547,3.0,2004.9,2004.7,2.83088183]
[1742775164748,7.9873,2005.1,2004.7,2.83088183]
[1742775165049,3.0,2005.1,2004.8,0.55]
[1742775165254,3.0,2005.1,2004.9,5.67957609]
[1742775165421,5.35434459,2005.6,2005.1,4.98715]
[1742775165422,4.98637,2005.5,2005.1,4.98715]
[1742775165622,4.98637,2005.5,2005.2,0.8002]
[1742775165845,3.0,2005.4,2005.3,4.743]
[1742775166426,7.98653,2005.4,2005.3,4.743]
[1742775166629,4.98653,2005.4,2005.3,4.743]
[1742775166958,7.98653,2005.4,2005.3,4.743]
[1742775167155,4.98653,2005.4,2005.3,4.743]
[1742775167455,7.98653,2005.4,2005.3,4.743]
[1742775167651,3.0,2005.4,2005.3,6.75188617]
[1742775167951,3.0,2005.4,2005.3,11.73866617]
[1742775168251,3.0,2005.4,2005.3,6.75188617]
[1742775168455,3.0,2005.4,2005.3,14.75188617]
[1742775168829,2.9,2005.4,2005.3,14.75188617]
[1742775169037,3.04921987,2005.4,2005.3,14.75188617]
[1742775171670,0.14921987,2005.4,2005.3,20.50066617]
[1742775171829,9.97096,2005.9,2005.5,0.762]
[1742775172028,3.0,2005.7,2005.6,0.574847]
[1742775172337,3.13973849,2005.7,2005.6,0.574847]
[1742775174284,8.12552849,2005.7,2005.6,0.574847]
[1742775176070,3.13973849,2005.7,2005.6,0.574847]
[1742775176664,8.12552849,2005.7,2005.6,0.574847]
[1742775177162,3.13973849,2005.7,2005.6,0.574847]
[1742775177973,8.12552849,2005.7,2005.6,0.574847]
[1742775178168,8.12552849,2005.7,2005.5,0.762]
[1742775178369,3.13973849,2005.7,2005.5,0.762]
[1742775178581,0.13973849,2005.7,2005.5,1.75648893]
[1742775179574,3.0,2005.5,2005.4,8.0]
[1742775179743,3.13959219,2005.5,2005.4,12.742]
[1742775180274,3.13959219,2005.5,2005.4,4.742]
[1742775181988,3.13959219,2005.5,2005.4,5.72780358]
[1742775182457,8.12590219,2005.5,2005.4,4.741]
[1742775182862,3.13959219,2005.5,2005.4,4.741]
[1742775183077,0.13959219,2005.5,2005.4,5.2151]
[1742775183589,0.14003794,2005.5,2005.4,5.2151]
[1742775183792,7.98583,2005.7,2005.4,5.2151]
[1742775183963,3.0,2005.8,2005.6,0.762]
[1742775184478,7.98559,2005.8,2005.6,0.762]
[1742775185285,7.98559,2005.8,2005.5,0.55]
[1742775185490,4.98583,2005.7,2005.5,0.55]
[1742775187162,7.98623,2005.6,2005.2,9.02068248]
[1742775187474,7.98632,2005.5,2005.4,4.741]
[1742775188291,3.0,2005.5,2005.4,4.741]
[1742775188866,7.98628,2005.5,2005.4,4.741]
[1742775189367,3.0,2005.5,2005.4,4.741]
[1742775189564,7.98628,2005.5,2005.4,4.741]
[1742775190568,4.98678,2005.3,2005.2,5.76168248]
[1742775190762,4.98677,2005.4,2005.2,9.67622073]
[1742775191496,9.97351,2005.4,2005.2,9.67622073]
[1742775192294,4.98674,2005.4,2005.2,9.67622073]
[1742775192507,7.98674,2005.4,2005.2,9.67622073]
[1742775193368,7.98674,2005.4,2005.2,5.76168248]
[1742775193580,3.0,2005.3,2005.2,4.741]
[1742775193800,4.98728,2005.1,2005.0,35.591]
[1742775193977,7.98728,2005.1,2005.0,40.332]
[1742775194369,3.0,2005.1,2005.0,32.332]
[1742775194878,7.98728,2005.1,2005.0,32.332]
[1742775198410,7.98728,2005.1,2005.0,27.591]
[1742775198914,8.12576696,2005.1,2005.0,27.591]
[1742775200314,3.0,2005.0,2004.9,5.67657609]
[1742775200607,8.12594378,2005.0,2004.9,5.67657609]
[1742775201702,8.12594378,2005.0,2004.9,4.741]
[1742775208417,0.13841378,2005.0,2004.9,4.741]
[1742775209481,0.13841378,2005.0,2004.7,9.8241179]
[1742775209683,7.98797,2004.9,2004.7,8.0]
[1742775209881,8.12561021,2004.8,2004.7,8.0]
[1742775210381,13.11386021,2004.8,2004.6,5.48440237]